bitfinex/quotes_ETHUSD_20241009
["timestamp","ask_amount","ask_price","bid_price","bid_amount"]
[1728451675863,3.0,2448.8,2448.4,1.8212108]
[1728451676064,0.05716651,2448.6,2448.4,1.8212108]
[1728451676240,3.0,2448.8,2448.4,1.8212108]
[1728451676442,0.05708058,2448.5,2448.4,1.8212108]
[1728451676765,3.0,2448.8,2448.4,1.8212108]
[1728451676973,0.05708058,2448.5,2448.4,1.8212108]
[1728451677145,3.0,2448.8,2448.4,1.8212108]
[1728451677329,0.05708058,2448.5,2448.4,1.8212108]
[1728451677530,3.0,2448.8,2448.4,1.8212108]
[1728451678031,0.05725368,2448.7,2448.4,1.8212108]
[1728451678564,0.05716775,2448.6,2448.4,1.8212108]
[1728451678764,0.05716775,2448.6,2448.4,4.84036]
[1728451678927,3.0,2448.8,2448.4,4.84036]
[1728451679125,0.05708305,2448.5,2448.4,4.84036]
[1728451679327,3.0,2448.8,2448.4,4.84036]
[1728451679529,0.05708305,2448.5,2448.4,0.7561]
[1728451680028,3.0,2448.8,2448.4,0.7561]
[1728451680233,0.05725491,2448.7,2448.4,0.7561]
[1728451680436,3.0,2448.8,2448.4,0.7561]
[1728451680635,0.05716898,2448.6,2448.4,0.7561]
[1728451680877,7.08363,2448.8,2448.4,0.7561]
[1728451681077,0.05708305,2448.5,2448.4,0.7561]
[1728451681233,7.08363,2448.8,2448.4,0.7561]
[1728451681430,0.05708305,2448.5,2448.4,0.7561]
[1728451681634,7.08363,2448.8,2448.4,0.7561]
[1728451681862,0.05708305,2448.5,2448.4,0.7561]
[1728451682137,7.08363,2448.8,2448.4,0.7561]
[1728451682335,0.05708305,2448.5,2448.4,0.7561]
[1728451682541,7.08363,2448.8,2448.4,0.7561]
[1728451683043,0.05724871,2448.7,2448.4,0.7561]
[1728451683254,7.08363,2448.8,2448.4,0.7561]
[1728451683442,0.05716278,2448.6,2448.4,0.7561]
[1728451683642,7.08363,2448.8,2448.4,0.7561]
[1728451683853,0.05705579,2448.5,2448.4,0.7561]
[1728451684173,7.08363,2448.8,2448.4,0.7561]
[1728451684374,0.05705579,2448.5,2448.4,0.7561]
[1728451684867,4.08382,2448.7,2448.4,0.7561]
[1728451685083,0.05705332,2448.5,2448.4,0.7561]
[1728451685276,4.08382,2448.7,2448.2,0.7686]
[1728451685582,0.05705332,2448.5,2448.2,0.7686]
[1728451685777,4.14111926,2448.6,2448.2,0.7686]
[1728451685975,0.05696738,2448.4,2448.2,0.7686]
[1728451686132,4.08414,2448.5,2448.2,1.4265558]
[1728451686338,0.05690249,2448.3,2448.2,0.7686]
[1728451686575,4.08414,2448.5,2448.0,4.89963]
[1728451686740,0.05685529,2448.3,2448.0,4.89963]
[1728451687090,4.08414,2448.5,2448.0,4.89963]
[1728451687091,0.05679243,2448.2,2448.0,4.89963]
[1728451687263,4.08414,2448.5,2448.0,4.89963]
[1728451687264,4.08414,2448.5,2448.0,5.9707278]
[1728451687584,0.0567159,2448.1,2448.0,5.9707278]
[1728451687785,4.08414,2448.5,2448.0,5.9707278]
[1728451688324,0.05697377,2448.4,2448.0,5.9707278]
[1728451688493,0.05697377,2448.4,2448.1,1.17820758]
[1728451688801,4.08397,2448.6,2448.1,1.17820758]
[1728451688966,0.05687415,2448.3,2448.1,1.17820758]
[1728451689161,4.08397,2448.6,2448.1,1.17820758]
[1728451689369,0.0567882,2448.2,2448.1,1.17820758]
[1728451689660,0.05659662,2448.2,2448.1,1.17820758]
[1728451689863,4.08397,2448.6,2448.1,1.17820758]
[1728451690064,0.05659662,2448.2,2448.1,1.17820758]
[1728451690266,4.08397,2448.6,2448.1,1.17820758]
[1728451690491,0.05659662,2448.2,2448.1,1.17820758]
[1728451690704,4.08397,2448.6,2448.1,1.17820758]
[1728451690863,0.05659536,2448.2,2448.1,1.17820758]
[1728451691053,4.08397,2448.6,2448.1,1.17820758]
[1728451691389,0.05659536,2448.2,2448.1,1.17820758]
[1728451691588,4.08397,2448.6,2448.1,5.26300758]
[1728451691791,0.05659536,2448.2,2448.1,5.26300758]
[1728451691998,4.08397,2448.6,2448.1,5.26300758]
[1728451692210,0.05659536,2448.2,2448.1,5.26300758]
[1728451692370,4.08397,2448.6,2448.1,5.26300758]
[1728451692697,4.08397,2448.6,2448.2,0.60540561]
[1728451692900,4.08397,2448.6,2448.1,5.26300758]
[1728451693878,4.08382,2448.7,2448.1,9.34770758]
[1728451694464,4.08382,2448.7,2448.1,5.26290758]
[1728451694983,4.08382,2448.7,2448.1,9.34760758]
[1728451697515,4.08382,2448.7,2448.2,0.8087]
[1728451697663,3.0,2448.8,2448.3,6.41774875]
[1728451697869,3.0,2448.8,2448.4,0.8104]
[1728451700435,0.0572241,2448.7,2448.4,0.8104]
[1728451700736,3.0,2448.8,2448.4,0.8104]
[1728451700947,0.05722906,2448.7,2448.4,0.8104]
[1728451701146,3.0,2448.8,2448.4,0.8104]
[1728451701299,0.05714314,2448.6,2448.4,0.8104]
[1728451701499,0.05714314,2448.6,2448.4,1.36058808]
[1728451701741,3.0,2448.8,2448.4,1.36058808]
[1728451701940,0.05723156,2448.7,2448.4,0.8104]
[1728451702232,3.0,2448.8,2448.4,0.8104]
[1728451702437,0.0572379,2448.6,2448.4,0.8104]
[1728451702652,3.0,2448.8,2448.4,0.8104]
[1728451702801,0.05715198,2448.5,2448.4,0.8104]
[1728451703134,3.0,2448.8,2448.4,1.36058808]
[1728451703377,0.05729948,2448.7,2448.4,0.8104]
[1728451703697,3.0,2448.8,2448.4,0.8104]
[1728451703934,0.05734158,2448.7,2448.4,0.8104]
[1728451704133,3.0,2448.8,2448.4,0.8104]
[1728451704359,0.05732053,2448.7,2448.4,0.8104]
[1728451704699,3.0,2448.8,2448.4,0.8104]
[1728451704945,0.05729701,2448.7,2448.4,0.8104]
[1728451705343,3.0,2448.8,2448.4,0.8104]
[1728451705544,0.05733067,2448.7,2448.4,0.8104]
[1728451705701,3.0,2448.8,2448.4,0.8104]
[1728451705901,0.05732944,2448.7,2448.4,0.8104]
[1728451706201,7.08363,2448.8,2448.4,0.8104]
[1728451706431,0.05724351,2448.6,2448.4,0.8104]
[1728451706629,7.08363,2448.8,2448.4,0.8104]
[1728451706832,0.05715758,2448.5,2448.4,0.8104]
[1728451707009,7.08363,2448.8,2448.4,0.8104]
[1728451707222,0.05715632,2448.5,2448.4,0.8104]
[1728451707417,7.08363,2448.8,2448.4,0.8104]
[1728451707629,0.05715632,2448.5,2448.4,0.8104]
[1728451707837,7.08363,2448.8,2448.4,0.8104]
[1728451708033,0.05713867,2448.5,2448.4,0.8104]
[1728451708244,4.08383,2448.7,2448.2,0.7551]
[1728451708450,0.05713867,2448.5,2448.2,0.7551]
[1728451708616,0.05722214,2448.6,2448.2,1.64755]
[1728451708821,0.05706791,2448.4,2448.2,1.64755]
[1728451709051,4.08383,2448.7,2448.2,1.64755]
[1728451709236,0.05698197,2448.3,2448.2,0.7551]
[1728451709413,4.08383,2448.7,2448.2,0.7551]
[1728451709617,0.05697577,2448.3,2448.2,0.7551]
[1728451709846,7.08401,2448.6,2448.2,0.7551]
[1728451710359,0.05712778,2448.5,2448.0,4.90432]
[1728451710557,4.14129778,2448.5,2448.0,5.803251]
[1728451714773,0.05712778,2448.5,2448.0,1.718431]
[1728451714939,0.05712778,2448.5,2448.1,4.08477]
[1728451716969,0.05712778,2448.5,2448.1,4.0847]
[1728451721460,0.05712778,2448.5,2448.3,0.7622]
[1728451725631,0.05712778,2448.5,2447.9,4.08503]
[1728451725832,4.0843,2448.4,2447.9,8.657433]
[1728451726150,4.0843,2448.4,2447.9,4.572403]
[1728451726151,0.05692959,2448.3,2447.9,4.572403]
[1728451726851,0.05692959,2448.3,2447.9,8.657443]
[1728451727262,4.08415,2448.5,2447.9,4.572403]
[1728451727565,4.08415,2448.5,2447.9,8.657433]
[1728451727775,0.05698075,2448.4,2447.9,8.657433]
[1728451728135,0.05698075,2448.4,2447.9,8.657443]
[1728451728452,0.05698075,2448.4,2447.9,4.572403]
[1728451728853,0.05698075,2448.4,2447.9,8.657443]
[1728451729147,0.05698075,2448.4,2448.0,0.8657443]
[1728451730670,0.05698075,2448.4,2448.0,4.08492]
[1728451730877,11.16812,2448.6,2448.0,4.08492]
[1728451731076,0.05688492,2448.3,2448.0,4.08492]
[1728451731282,11.16812,2448.6,2448.0,4.08492]
[1728451731448,0.05680143,2448.2,2448.0,4.08492]
[1728451731783,11.16812,2448.6,2448.0,4.901915]
[1728451731784,0.05654145,2448.1,2448.0,4.901915]
[1728451732372,11.16811,2448.6,2448.1,4.08476]
[1728451732373,7.08405,2448.6,2448.1,4.08476]
[1728451734781,7.08405,2448.6,2448.0,0.8076]
[1728451735082,7.08405,2448.6,2448.1,4.08477]
[1728451735884,7.08405,2448.6,2448.0,0.8076]
[1728451735885,4.08414,2448.5,2448.0,0.8076]
[1728451736047,7.08405,2448.6,2448.0,4.89248]
[1728451736487,7.08405,2448.6,2448.0,0.8076]
[1728451736655,4.08416,2448.5,2448.0,0.8076]
[1728451736844,7.08405,2448.6,2448.0,4.89254]
[1728451737050,11.1681,2448.6,2448.0,4.89254]
[1728451737290,7.08405,2448.6,2448.0,4.89254]
[1728451737492,11.16813,2448.6,2448.0,4.89254]
[1728451737698,7.08405,2448.6,2448.0,4.89254]
[1728451738200,4.08413,2448.5,2448.0,0.8076]
[1728451738404,4.08415,2448.5,2448.0,0.8076]
[1728451738606,7.08405,2448.6,2448.0,4.89246]
[1728451739107,11.16813,2448.6,2448.0,4.89246]
[1728451739270,11.1681,2448.6,2448.0,4.89246]
[1728451739465,7.08405,2448.6,2448.0,4.89246]
[1728451740604,4.08415,2448.5,2448.0,4.89246]
[1728451740767,4.08415,2448.5,2448.0,1.705347]
[1728451740999,4.08415,2448.5,2448.0,0.8076]
[1728451741173,4.08415,2448.5,2448.0,4.89256]
[1728451741586,4.08415,2448.5,2448.0,0.8076]
[1728451742202,4.08415,2448.5,2448.0,4.89253]
[1728451743508,7.08405,2448.6,2448.0,4.89253]
[1728451743666,11.1681,2448.6,2448.0,4.89253]
[1728451744094,7.08405,2448.6,2448.0,4.89253]
[1728451744809,11.16813,2448.6,2448.0,4.89253]
[1728451745120,0.05707165,2448.5,2448.0,4.89253]
[1728451750319,0.05707165,2448.5,2448.0,5.78331493]
[1728451754180,0.05707165,2448.5,2448.1,4.08479]
[1728451754413,0.05707165,2448.5,2448.2,0.814]
[1728451759215,4.14130165,2448.5,2448.2,0.814]
[1728451759426,3.0,2448.1,2447.8,0.7887]
[1728451759626,3.0,2448.1,2447.5,4.08572]
[1728451759920,3.0,2448.1,2447.6,0.7887]
[1728451759921,0.05619936,2448.0,2447.6,0.7887]
[1728451760104,4.14118936,2448.0,2447.6,0.7887]
[1728451762502,4.08514,2447.9,2447.6,0.7887]
[1728451762913,0.05609266,2447.8,2447.6,0.7887]
[1728451764550,4.08499,2448.0,2447.6,0.7887]
[1728451764551,8.17005,2448.0,2447.6,0.7887]
[1728451764827,0.05617366,2447.9,2447.6,0.7887]
[1728451768829,0.05617366,2447.9,2447.6,4.08563]
[1728451769049,0.05617366,2447.9,2447.7,0.8169]
[1728451769251,7.08483,2448.1,2447.7,0.8169]
[1728451769401,0.05607154,2447.8,2447.7,0.8169]
[1728451769605,7.08483,2448.1,2447.7,0.8169]
[1728451770148,0.05619087,2448.0,2447.7,0.8169]
[1728451770951,4.14116087,2448.0,2447.7,0.8169]
[1728451774450,0.05619087,2448.0,2447.7,4.90232]
[1728451774654,0.05619087,2448.0,2447.7,7.70001679]
[1728451775567,0.05619087,2448.0,2447.8,0.7893]
[1728451775781,0.05619087,2448.0,2447.9,2.51556799]
[1728451775932,3.0,2448.3,2448.0,0.7893]
[1728451776131,0.05633075,2448.2,2448.0,0.7893]
[1728451776470,4.08414,2448.5,2448.0,1.0408568]
[1728451776773,4.08431,2448.4,2448.0,0.7893]
[1728451777072,0.05641669,2448.3,2448.0,0.7893]
[1728451779565,3.0,2448.4,2448.0,0.7893]
[1728451779735,0.05651238,2448.3,2448.0,0.7893]
[1728451781267,0.05651238,2448.3,2448.0,4.87424]
[1728451782181,0.05651238,2448.3,2448.1,0.8042]
[1728451782388,3.0,2448.5,2448.1,0.8042]
[1728451782587,0.05658962,2448.4,2448.1,0.8042]
[1728451783489,0.05658962,2448.4,2448.1,4.88897]
[1728451784367,0.05658962,2448.4,2448.1,0.8042]
[1728451787600,0.05658962,2448.4,2448.1,2.53046799]
[1728451787900,7.0838,2448.7,2448.2,0.7828]
[1728451788093,0.05657481,2448.3,2448.2,4.86743]
[1728451788249,3.0,2448.7,2448.2,4.86743]
[1728451788595,3.0,2448.7,2448.3,4.91015]
[1728451788796,0.05662355,2448.6,2448.3,6.63643799]
[1728451789466,0.05662355,2448.6,2448.4,0.8258]
[1728451791180,0.05662355,2448.6,2448.5,2.52166799]
[1728451791379,4.08333,2449.0,2448.5,2.52166799]
[1728451791712,0.05712017,2448.9,2448.5,3.18225479]
[1728451792402,4.14061017,2448.9,2448.5,3.18225479]
[1728451793206,0.05712017,2448.9,2448.6,0.7767]
[1728451793401,3.0,2448.9,2448.6,0.7767]
[1728451793657,3.0,2448.9,2448.6,1.90989548]
[1728451793658,0.05499623,2448.8,2448.6,1.90989548]
[1728451801912,0.05499623,2448.8,2448.6,0.7767]
[1728451803131,4.13862623,2448.8,2448.6,0.7767]
[1728451803926,0.05499623,2448.8,2448.6,0.7767]
[1728451805595,4.13863623,2448.8,2448.6,0.7767]
[1728451806146,0.05499623,2448.8,2448.6,0.7767]
[1728451812625,4.13864623,2448.8,2448.6,0.7767]
[1728451813449,0.05499623,2448.8,2448.6,0.7767]
[1728451814465,0.05499623,2448.8,2448.4,0.8173]
[1728451814761,0.05499623,2448.8,2448.4,1.8068158]
[1728451815369,4.13863623,2448.8,2448.4,1.8068158]
[1728451816372,0.05499623,2448.8,2448.4,1.8068158]
[1728451816577,4.08383,2448.7,2448.1,0.7911]
[1728451816867,4.08413,2448.5,2448.1,0.7911]
[1728451817747,0.05504488,2448.4,2448.1,0.7911]
[1728451826863,0.05504488,2448.4,2448.1,0.7895]
[1728451827268,0.05504488,2448.4,2448.1,0.7847]
[1728451827776,0.05504488,2448.4,2448.1,0.7823]
[1728451827940,0.05504488,2448.4,2448.1,0.7807]
[1728451828141,0.05504488,2448.4,2448.1,0.7775]
[1728451828340,7.08397,2448.6,2448.1,0.7775]
[1728451828559,7.08397,2448.6,2448.1,0.7759]
[1728451828758,7.08397,2448.6,2448.1,0.7743]
[1728451828954,0.05328521,2448.5,2448.1,0.7727]
[1728451829257,0.05328521,2448.5,2448.1,0.7719]
[1728451829453,0.05328521,2448.5,2448.1,0.7687]
[1728451829747,0.05328521,2448.5,2448.1,0.7663]
[1728451829951,0.05328521,2448.5,2448.1,0.7647]
[1728451830149,0.05328521,2448.5,2448.1,0.7639]
[1728451830357,0.05328521,2448.5,2448.1,0.7599]
[1728451830874,0.05328521,2448.5,2448.1,0.7575]
[1728451831078,0.05328521,2448.5,2448.1,0.7559]
[1728451831306,0.05328521,2448.5,2448.1,0.7527]
[1728451831707,0.05328521,2448.5,2448.1,0.7519]
[1728451831874,0.05328521,2448.5,2448.1,0.7511]
[1728451832577,0.05328521,2448.5,2448.1,6.56207799]
[1728451832809,0.05328521,2448.5,2448.1,7.62677979]
[1728451833109,0.05328521,2448.5,2448.1,3.54206979]
[1728451836120,0.05328521,2448.5,2448.1,7.62684979]
[1728451838323,0.05328521,2448.5,2448.3,5.81071799]
[1728451838528,0.05328521,2448.5,2448.4,0.7952]
[1728451838784,7.08358,2448.9,2448.4,0.7952]
[1728451838937,0.05329912,2448.5,2448.4,0.7952]
[1728451839134,7.08358,2448.9,2448.4,0.7952]
[1728451839617,0.05357296,2448.8,2448.4,0.7952]
[1728451839985,3.0,2448.7,2448.4,0.7952]
[1728451840192,0.05340116,2448.6,2448.4,0.7952]
[1728451845161,0.05340116,2448.6,2448.3,1.72626799]
[1728451845460,0.05340116,2448.6,2448.2,4.8845]
[1728451847166,0.05340116,2448.6,2448.2,0.7999]
[1728451847657,0.05340116,2448.6,2448.2,4.88451]
[1728451850319,0.05340116,2448.6,2448.2,0.7999]
[1728451855067,0.05340116,2448.6,2448.2,4.88445]
[1728451856045,0.05340116,2448.6,2448.2,0.7999]
[1728451861361,4.13738116,2448.6,2448.2,0.7999]
[1728451861568,4.08422,2448.5,2447.9,5.81127799]
[1728451861780,4.08422,2448.5,2447.9,6.63897799]
[1728451862067,0.05190857,2448.4,2447.9,10.72401799]
[1728451863630,0.05190857,2448.4,2448.0,4.08495]
[1728451864466,0.05190857,2448.4,2448.1,5.81103799]
[1728451864660,4.08389,2448.7,2448.3,1.72626799]
[1728451864844,3.0,2448.8,2448.3,5.81071799]
[1728451865057,3.0,2448.8,2448.3,9.89516799]
[1728451865260,3.0,2448.8,2448.4,0.7567]
[1728451865464,3.0,2449.0,2448.7,1.72626799]
[1728451865663,15.79834425,2449.3,2448.7,5.81000799]
[1728451865861,8.16579,2449.3,2448.7,6.58990799]
[1728451866460,4.08299,2449.2,2448.7,6.58990799]
[1728451866858,4.08314,2449.1,2448.7,2.50616799]
[1728451867093,0.50729764,2449.0,2448.3,6.61310799]
[1728451867249,4.08355,2448.9,2448.3,6.61310799]
[1728451868277,8.16645,2449.1,2448.6,0.8096]
[1728451868487,0.05036512,2448.8,2448.6,0.8096]
[1728451868687,8.16647,2449.1,2448.6,0.8096]
[1728451868887,0.05027922,2448.7,2448.6,0.8096]
[1728451869090,4.08333,2449.0,2448.6,0.8096]
[1728451869259,0.05027922,2448.7,2448.6,0.8096]
[1728451869448,4.08333,2449.0,2448.5,1.72626799]
[1728451869788,0.05045348,2448.9,2448.5,1.72626799]
[1728451872567,0.05045348,2448.9,2448.5,5.81035799]
[1728451874471,1.77672147,2448.9,2447.7,0.8092]
[1728451874785,1.77672147,2448.9,2447.8,5.81151799]
[1728451874786,4.08398,2448.6,2447.8,5.81151799]
[1728451875007,4.08448,2448.3,2447.8,1.72626799]
[1728451875292,0.04985366,2448.2,2447.8,1.72626799]
[1728451875500,4.08448,2448.3,2447.8,2.38835179]
[1728451875703,0.04976028,2448.1,2447.8,2.38835179]
[1728451876072,4.08448,2448.3,2447.8,2.38835179]
[1728451876274,0.0492912,2448.0,2447.8,2.38835179]
[1728451876493,4.08448,2448.3,2447.8,2.38835179]
[1728451876675,0.04920523,2447.9,2447.8,2.38835179]
[1728451876999,4.08448,2448.3,2447.8,6.47359179]
[1728451877203,4.08448,2448.3,2447.9,1.13681618]
[1728451877357,4.08448,2448.3,2447.8,2.38835179]
[1728451879707,4.08448,2448.3,2447.8,0.6620838]
[1728451879994,4.08474,2448.2,2447.7,0.8092]
[1728451880203,4.08448,2448.3,2447.7,0.8092]
[1728451880371,4.08491,2448.1,2447.7,0.8092]
[1728451880696,4.08497,2448.0,2447.7,0.8092]
[1728451880902,4.08497,2448.0,2447.5,0.7799]
[1728451881271,4.08525,2447.9,2447.5,0.7799]
[1728451883608,0.04885907,2447.8,2447.5,0.7799]
[1728451887102,4.13417907,2447.8,2447.5,0.7799]
[1728451887805,0.04885907,2447.8,2447.5,0.7799]
[1728451889501,3.04885907,2447.8,2447.5,0.7799]
[1728451889872,0.04885907,2447.8,2447.5,0.7799]
[1728451892083,4.13415907,2447.8,2447.5,0.7799]
[1728451892524,0.04885907,2447.8,2447.5,0.7799]
[1728451893005,4.13417907,2447.8,2447.5,0.7799]
[1728451895219,0.04885907,2447.8,2447.5,0.7799]
[1728451898491,4.13417907,2447.8,2447.5,0.7799]
[1728451900628,0.04885907,2447.8,2447.5,0.7799]
[1728451903514,0.04885907,2447.8,2447.7,1.72626799]
[1728451903715,7.085,2448.0,2447.7,2.55126799]
[1728451903925,0.0487949,2447.9,2447.7,2.55126799]
[1728451907737,0.0487949,2447.9,2447.7,0.825]
[1728451909639,0.0487949,2447.9,2447.7,2.55126799]
[1728451910146,0.04865986,2447.8,2447.7,2.55126799]
[1728451910359,4.08489,2448.1,2447.7,2.55126799]
[1728451910501,0.04883183,2448.0,2447.7,2.55126799]
[1728451910701,0.04883183,2448.0,2447.7,3.21495579]
[1728451920639,0.04883183,2448.0,2447.9,2.48276799]
[1728451920942,0.04865835,2448.0,2447.9,2.48276799]
[1728451921237,4.08456,2448.3,2447.9,2.48276799]
[1728451921738,0.04883031,2448.2,2447.9,2.48276799]
[1728451921898,3.0,2448.4,2448.1,1.72626799]
[1728451922096,0.04891751,2448.3,2448.1,1.72626799]
[1728451922500,0.04891751,2448.3,2447.9,6.56787799]
[1728451922701,0.04891751,2448.3,2447.9,7.63318679]
[1728451924002,0.04891751,2448.3,2447.9,3.54807679]
[1728451924845,0.04891751,2448.3,2447.9,7.63318679]
[1728451926861,0.04891751,2448.3,2447.9,7.63319679]
[1728451927035,0.04891751,2448.3,2447.9,3.54807679]
[1728451927229,0.04891751,2448.3,2448.0,0.76332868]
[1728451927739,0.04891751,2448.3,2447.9,6.56783799]
[1728451927938,0.04891751,2448.3,2447.9,2.48276799]
[1728451928559,0.04891751,2448.3,2447.9,6.56786799]
[1728451931234,0.04891751,2448.3,2448.2,0.7802]
[1728451931440,0.04891751,2448.3,2448.2,4.86483]
[1728451931636,7.43,2448.6,2448.2,5.9324228]
[1728451931922,7.43,2448.6,2448.3,1.72626799]
[1728451932365,8.16785,2448.7,2448.3,1.72626799]
[1728451932523,4.08399,2448.6,2448.3,1.72626799]
[1728451933924,4.08392,2448.7,2448.3,1.72626799]
[1728451934355,8.16786,2448.7,2448.3,1.72626799]
[1728451935066,4.08392,2448.7,2448.3,1.72626799]
[1728451935660,8.16784,2448.7,2448.3,1.72626799]
[1728451936959,4.08397,2448.6,2448.3,1.72626799]
[1728451938379,4.08392,2448.7,2448.2,0.7802]
[1728451938380,4.08414,2448.5,2448.2,0.7802]
[1728451938535,4.08414,2448.5,2448.0,4.88736]
[1728451938735,4.08414,2448.5,2448.0,6.61362799]
[1728451939774,4.08414,2448.5,2448.0,10.69850799]
[1728451939947,4.08414,2448.5,2448.0,6.61362799]
[1728451940875,8.16784,2448.7,2448.1,4.08479]
[1728451941038,4.0839,2448.7,2448.2,0.8321]
[1728451941230,4.08401,2448.6,2448.2,0.8321]
[1728451943586,0.04913708,2448.5,2448.2,0.8321]
[1728451946554,0.04913708,2448.5,2448.2,2.55836799]
[1728451947887,0.04913708,2448.5,2448.2,0.8321]
[1728451948481,4.0839,2448.7,2448.2,0.8321]
[1728451948690,0.04905486,2448.4,2448.2,0.8321]
[1728451948905,4.0839,2448.7,2448.2,0.8321]
[1728451949355,0.04924986,2448.6,2448.2,0.8321]
[1728451950101,4.13322986,2448.6,2448.2,0.8321]
[1728451951173,0.04924986,2448.6,2448.2,0.8321]
[1728451951430,0.04924986,2448.6,2448.2,6.64299799]
[1728451951899,0.04924986,2448.6,2448.2,2.55836799]
[1728451952104,4.13320986,2448.6,2448.2,2.55836799]
[1728451953173,4.13320986,2448.6,2448.2,0.8321]
[1728451957396,0.04924986,2448.6,2448.2,0.8321]
[1728451962297,4.13322986,2448.6,2448.2,0.8321]
[1728451963437,0.04924986,2448.6,2448.2,0.8321]
[1728451964804,4.13320986,2448.6,2448.2,0.8321]
[1728451967799,4.08415,2448.5,2448.2,0.8321]
[1728451968006,4.13355797,2448.5,2448.2,0.8321]
[1728451971160,0.04940797,2448.5,2448.2,0.8321]
[1728451971326,4.08398,2448.6,2448.3,0.782]
[1728451971654,0.04941294,2448.5,2448.3,0.782]
[1728451972563,0.04932699,2448.4,2448.3,0.782]
[1728451972766,8.16778,2448.7,2448.3,1.4413058]
[1728451972969,0.04931001,2448.4,2448.3,0.782]
[1728451973125,8.16778,2448.7,2448.3,0.782]
[1728451973327,0.0494819,2448.6,2448.3,0.782]
[1728451973525,0.0494819,2448.6,2448.5,0.7516]
[1728451974842,4.08365,2448.8,2448.5,0.7516]
[1728451975043,0.04949679,2448.6,2448.5,0.7516]
[1728451975375,0.04949679,2448.6,2448.5,0.9993868]
[1728451975525,7.08354,2448.9,2448.5,0.9993868]
[1728451975726,0.04967858,2448.8,2448.5,0.7516]
[1728451975952,4.13332858,2448.8,2448.5,0.7516]
[1728451976153,0.04967858,2448.8,2448.7,0.8052]
[1728451977374,0.0495955,2448.8,2448.7,0.8052]
[1728451977534,4.08348,2448.9,2448.7,0.8052]
[1728451977730,0.0495955,2448.8,2448.7,0.8052]
[1728451977936,3.0,2449.0,2448.7,0.8052]
[1728451978144,0.04968143,2448.9,2448.7,0.8052]
[1728451978338,8.16647,2449.1,2448.8,0.2531468]
[1728451978542,0.04979044,2449.0,2448.8,1.72626799]
[1728451978744,0.04979044,2449.0,2448.9,2.53246799]
[1728451979041,4.08282,2449.3,2448.9,1.72626799]
[1728451979241,4.08254,2449.5,2449.3,0.8062]
[1728451979568,4.08254,2449.5,2449.4,1.72626799]
[1728451979773,4.24097516,2449.6,2449.4,1.72626799]
[1728451980807,4.24097516,2449.6,2449.5,0.7807]
[1728451981367,4.08188,2449.9,2449.5,0.7807]
[1728451981960,8.16378,2449.9,2449.5,0.7807]
[1728451982580,3.0,2449.8,2449.5,0.7807]
[1728451982749,7.08199,2449.8,2449.5,0.7807]
[1728451984470,3.0,2449.8,2449.5,0.7807]
[1728451984772,7.08198,2449.8,2449.5,1.4396738]
[1728451985236,3.0,2449.8,2449.5,1.4396738]
[1728451985734,4.08188,2449.9,2449.5,1.4396738]
[1728451986679,4.08198,2449.8,2449.5,1.4396738]
[1728451986972,4.08198,2449.8,2449.6,0.31659418]
[1728451987171,4.08198,2449.8,2449.5,1.4396738]
[1728451987172,4.08198,2449.8,2449.5,0.7807]
[1728451987969,8.16377,2449.9,2449.5,0.7807]
[1728451988450,4.08198,2449.8,2449.5,0.7807]
[1728451988645,4.12725832,2449.8,2449.5,0.7807]
[1728451989374,4.12725832,2449.8,2449.5,1.4396748]
[1728451991675,4.08214,2449.7,2449.5,1.4396748]
[1728451991882,4.12747417,2449.7,2449.5,0.7807]
[1728451994271,0.04533417,2449.7,2449.5,0.7807]
[1728451994469,4.08196,2449.8,2449.5,0.7807]
[1728451994672,0.04525947,2449.6,2449.5,0.7807]
[1728451994869,4.08196,2449.8,2449.5,1.4396758]
[1728451995180,4.08196,2449.8,2449.5,0.7807]
[1728451995383,0.04534533,2449.7,2449.5,0.7807]
[1728451995586,4.08196,2449.8,2449.5,0.7807]
[1728451995743,0.04525947,2449.6,2449.5,0.7807]
[1728451996091,4.08196,2449.8,2449.5,0.7807]
[1728451996286,0.04525947,2449.6,2449.5,0.7807]
[1728451996484,4.08196,2449.8,2449.5,0.7807]
[1728451996665,0.04525947,2449.6,2449.5,0.7807]
[1728451996860,4.08218,2449.7,2449.5,0.7807]
[1728451997181,0.04525947,2449.6,2449.2,0.8018]
[1728451997355,0.04525947,2449.6,2449.3,0.6611088]
[1728451998086,4.12754947,2449.6,2449.3,0.6611088]
[1728451998384,0.04525947,2449.6,2449.3,0.6611088]
[1728451998887,0.04525947,2449.6,2449.3,2.38737679]
[1728452000977,4.12758947,2449.6,2449.3,2.38737679]
[1728452001177,0.04525947,2449.6,2449.3,2.38737679]
[1728452002202,0.04525947,2449.6,2449.2,0.8018]
[1728452002203,3.0,2449.5,2449.2,0.8018]
[1728452002357,3.04503807,2449.5,2449.2,0.8018]
[1728452002686,7.12753807,2449.5,2449.2,0.8018]
[1728452003672,4.08268,2449.4,2449.2,0.8018]
[1728452003900,4.12760194,2449.4,2449.2,0.8018]
[1728452004194,0.04492194,2449.4,2449.2,0.8018]
[1728452004982,4.12756194,2449.4,2449.2,0.8018]
[1728452005153,0.04492194,2449.4,2449.2,0.8018]
[1728452008303,0.04492194,2449.4,2448.2,3.0]
[1728452008304,4.08279,2449.3,2448.8,0.8154]
[1728452008602,0.0447726,2449.2,2448.8,0.8154]
[1728452008892,4.08279,2449.3,2448.8,1.4779308]
[1728452009097,0.04468545,2449.1,2448.8,1.4779308]
[1728452009398,0.04459954,2449.0,2448.8,5.5615208]
[1728452009597,4.08279,2449.3,2448.8,5.5615208]
[1728452009794,0.04451361,2448.9,2448.8,5.5615208]
[1728452009999,4.08279,2449.3,2448.8,5.5615208]
[1728452010170,0.04450741,2448.9,2448.8,5.5615208]
[1728452010494,4.08279,2449.3,2448.8,6.47238879]
[1728452010702,4.08279,2449.3,2448.9,0.813]
[1728452010865,4.08279,2449.3,2449.0,1.72626799]
[1728452011067,7.08256,2449.5,2449.0,1.72626799]
[1728452011382,11.16513,2449.5,2449.1,0.813]
[1728452011764,7.08256,2449.5,2449.1,0.813]
[1728452012159,11.16515,2449.5,2449.1,0.813]